[Event "Asian Zonal-ch 3.5 Women 2019"]
[Site "Zi Bo"]
[Date "2019.09.05"]
[Round "1.1"]
[White "Zhou, Zirun"]
[Black "Lei, Tingjie"]
[Result "0-1"]
[ECO "D75"]
[WhiteElo "2155"]
[BlackElo "2483"]
[Annotator "ChessBase"]
[PlyCount "174"]
[EventDate "2019.09.05"]
[EventType "swiss"]
[EventCountry "CHN"]
[SourceTitle "playchess.com"]
[Source "ChessBase"]
[SourceQuality "1"]
[TimeControl "5400+30"]

1. d4 {[%emt 0:00:00]} Nf6 {[%emt 0:00:00]} 2. c4 {[%emt 0:00:00]} g6 {[%emt 0:00:00]} 3. Nf3 {[%emt 0:00:08]} Bg7 {[%emt 0:00:00]} 4. g3 {[%emt 0:00:07]} c5 {[%emt 0:00:49]} 5. Bg2 {[%emt 0:01:53]} cxd4 {[%emt 0:00:10]} 6. Nxd4 {[%emt 0:00:09]} O-O {[%emt 0:00:07]} 7. O-O {[%emt 0:00:30]} d5 {[%emt 0:03:39]} 8. cxd5 {[%emt 0:03:29]} Nxd5 {[%emt 0:00:15]} 9. Nc3 {[%emt 0:00:11]} Nxc3 {[%emt 0:00:29]} 10. bxc3 {[%emt 0:00:07]} a6 {[%emt 0:13:12]} 11. Rb1 {[%emt 0:03:41]} Qc7 {[%emt 0:06:31]} 12. Qb3 {[%emt 0:09:17]} Nd7 {[%emt 0:00:05]} 13. Ba3 {[%emt 0:00:31]} Bf6 {[%emt 0:01:34]} 14. f4 {[%emt 0:09:47]} Re8 {[%emt 0:03:52]} 15. Kh1 {[%emt 0:02:08]} Kg7 {[%emt 0:07:32]} 16. Nc2 {[%emt 0:18:34]} Rb8 {[%emt 0:24:26]} 17. Ne3 {[%emt 0:04:00]} e6 {[%emt 0:06:49]} 18. Nc4 {[%emt 0:04:28]} Be7 {[%emt 0:03:18]} 19. Bxe7 {[%emt 0:03:18]} Rxe7 {[%emt 0:00:03]} 20. Qb4 {[%emt 0:00:17]} Nc5 {[%emt 0:09:40]} 21. Ne5 {[%emt 0:05:06]} Bd7 {[%emt 0:05:05]} 22. Nd3 {[%emt 0:03:06]} Rc8 {[%emt 0:00:06]} 23. Qd4+ {[%emt 0:00:34]} Kg8 {[%emt 0:02:42]} 24. Nxc5 {[%emt 0:01:36]} Qxc5 {[%emt 0:00:04]} 25. Rxb7 {[%emt 0:00:12]} Qxd4 {[%emt 0:00:18]} 26. cxd4 {[%emt 0:00:09]} Rc2 {[%emt 0:04:15]} 27. Bf3 {[%emt 0:06:31]} Kf8 {[%emt 0:00:44]} 28. Ra1 {[%emt 0:03:17]} Bb5 {[%emt 0:01:03]} 29. Rxe7 {[%emt 0:06:05]} Kxe7 {[%emt 0:00:03]} 30. e3 {[%emt 0:00:31]} Rc3 {[%emt 0:02:06]} 31. a4 {[%emt 0:01:23]} Bd7 {[%emt 0:00:05]} 32. Be2 {[%emt 0:08:53]} a5 {[%emt 0:00:47]} 33. Bb5 {[%emt 0:02:36]} Rxe3 {[%emt 0:02:23]} 34. Rc1 {[%emt 0:00:21]} Bxb5 {[%emt 0:00:43]} 35. axb5 {[%emt 0:00:05]} Rb3 {[%emt 0:00:05]} 36. Rc5 {[%emt 0:00:07]} a4 {[%emt 0:00:40]} 37. Rc4 {[%emt 0:00:39]} a3 {[%emt 0:00:11]} 38. Ra4 {[%emt 0:00:05]} Kf6 {[%emt 0:00:55]} 39. Kg2 {[%emt 0:02:33]} Kf5 {[%emt 0:02:19]} 40. Kh3 {[%emt 0:00:26]} f6 {[%emt 0:01:14]} 41. b6 {[%emt 0:02:17]} Ke4 {[%emt 0:00:49]} 42. Kg4 {[%emt 0:01:13]} Rxb6 {[%emt 0:01:14]} 43. Rxa3 {[%emt 0:00:07]} Kxd4 {[%emt 0:00:09]} 44. Kh4 {[%emt 0:01:01]} Rb2 {[%emt 0:00:51]} 45. h3 {[%emt 0:00:08]} Rb5 {[%emt 0:00:04]} 46. g4 {[%emt 0:00:17]} Ke4 {[%emt 0:00:10]} 47. Kg3 {[%emt 0:00:32]} Rd5 {[%emt 0:00:06]} 48. Ra6 {[%emt 0:00:45]} Rd3+ {[%emt 0:00:14]} 49. Kg2 {[%emt 0:00:05]} Rd2+ {[%emt 0:00:51]} 50. Kg3 {[%emt 0:00:08]} Rd3+ {[%emt 0:00:10]} 51. Kg2 {[%emt 0:00:03]} Kxf4 {[%emt 0:00:06]} 52. Rxe6 {[%emt 0:00:05]} Rd2+ {[%emt 0:00:04]} 53. Kg1 {[%emt 0:00:05]} Kg3 {[%emt 0:00:40]} 54. Re3+ {[%emt 0:00:06]} Kh4 {[%emt 0:00:04]} 55. Rf3 {[%emt 0:00:20]} Kg5 {[%emt 0:00:06]} 56. Ra3 {[%emt 0:00:58]} Re2 {[%emt 0:02:23]} 57. Kf1 {[%emt 0:00:11]} Rh2 {[%emt 0:00:05]} 58. Kg1 {[%emt 0:00:04]} Rd2 {[%emt 0:00:04]} 59. Rf3 {[%emt 0:01:31]} Kh4 {[%emt 0:00:38]} 60. Kh1 {[%emt 0:00:18]} Re2 {[%emt 0:00:37]} 61. Kg1 {[%emt 0:00:12]} Rc2 {[%emt 0:00:15]} 62. Kh1 {[%emt 0:00:06]} Kg5 {[%emt 0:00:05]} 63. Kg1 {[%emt 0:00:05]} h6 {[%emt 0:00:37]} 64. Kh1 {[%emt 0:01:32]} Re2 {[%emt 0:01:47]} 65. Kg1 {[%emt 0:00:06]} Ra2 {[%emt 0:01:13]} 66. Kh1 {[%emt 0:00:07]} f5 {[%emt 0:00:17]} 67. gxf5 {[%emt 0:00:08]} gxf5 {[%emt 0:00:01]} 68. Kg1 {[%emt 0:01:31]} f4 {[%emt 0:00:18]} 69. Rb3 {[%emt 0:00:18]} Re2 {[%emt 0:00:22]} 70. Rb6 {[%emt 0:01:38]} Ra2 {[%emt 0:01:38]} 71. h4+ {[%emt 0:00:38]} Kxh4 {[%emt 0:00:15]} 72. Rxh6+ {[%emt 0:00:07]} Kg3 {[%emt 0:00:02]} 73. Rg6+ {[%emt 0:00:19]} Kf3 {[%emt 0:00:04]} 74. Rb6 {[%emt 0:00:06]} Ra1+ {[%emt 0:00:05]} 75. Kh2 {[%emt 0:00:04]} Re1 {[%emt 0:00:10]} 76. Rb3+ {[%emt 0:00:33]} Kf2 {[%emt 0:00:14]} 77. Rb2+ {[%emt 0:01:07]} Kf1 {[%emt 0:01:46]} 78. Kh3 {[%emt 0:02:26]} Re3+ {[%emt 0:00:05]} 79. Kg4 {[%emt 0:00:24]} f3 {[%emt 0:00:03]} 80. Kf4 {[%emt 0:00:54]} Ra3 {[%emt 0:00:04]} 81. Kg3 {[%emt 0:00:21]} f2+ {[%emt 0:00:09]} 82. Kh2 {[%emt 0:00:04]} Rf3 {[%emt 0:00:15]} 83. Rb1+ {[%emt 0:00:53]} Ke2 {[%emt 0:00:04]} 84. Rb2+ {[%emt 0:00:04]} Ke3 {[%emt 0:00:15]} 85. Rb3+ {[%emt 0:01:05]} Ke4 {[%emt 0:00:08]} 86. Rb4+ {[%emt 0:00:07]} Kd5 {[%emt 0:00:11]} 87. Rb5+ {[%emt 0:00:15]} Kc4 {[%emt 0:00:09]} 0-1

[Event "Asian Zonal-ch 3.5 Women 2019"]
[Site "Zi Bo"]
[Date "2019.09.05"]
[Round "1.2"]
[White "Zhu, Jiner"]
[Black "Yan, Tianqi"]
[Result "1-0"]
[ECO "B43"]
[WhiteElo "2471"]
[BlackElo "2122"]
[Annotator "ChessBase"]
[PlyCount "43"]
[EventDate "2019.09.05"]
[EventType "swiss"]
[EventCountry "CHN"]
[SourceTitle "playchess.com"]
[Source "ChessBase"]
[SourceQuality "1"]
[TimeControl "5400+30"]

1. e4 {[%emt 0:00:00]} c5 {[%emt 0:00:00]} 2. Nf3 {[%emt 0:00:00]} e6 {[%emt 0:00:00]} 3. d4 {[%emt 0:00:00]} cxd4 {[%emt 0:00:00]} 4. Nxd4 {[%emt 0:00:00]} a6 {[%emt 0:00:00]} 5. Bd3 {[%emt 0:00:12]} Nc6 {[%emt 0:00:44]} 6. Nxc6 {[%emt 0:01:40]} dxc6 {[%emt 0:00:03]} 7. O-O {[%emt 0:00:19]} Qc7 {[%emt 0:00:21]} 8. Nc3 {[%emt 0:03:13]} e5 {[%emt 0:01:04]} 9. Be3 {[%emt 0:01:31]} Nf6 {[%emt 0:01:55]} 10. h3 {[%emt 0:00:27]} b5 {[%emt 0:09:37]} 11. f4 {[%emt 0:03:06]} Be7 {[%emt 0:06:09]} 12. fxe5 {[%emt 0:09:14]} Qxe5 {[%emt 0:00:32]} 13. Bf4 {[%emt 0:00:04]} Qd4+ {[%emt 0:04:02]} 14. Kh1 {[%emt 0:00:21]} h5 {[%emt 0:03:03]} 15. e5 {[%emt 0:09:10]} Nd5 {[%emt 0:05:42]} 16. Bxb5 {[%emt 0:02:22]} Qc5 {[%emt 0:04:04]} 17. Nxd5 {[%emt 0:00:52]} cxb5 {[%emt 0:00:45]} 18. Be3 {[%emt 0:00:08]} Qc6 {[%emt 0:04:04]} 19. Qf3 {[%emt 0:00:16]} Qb7 {[%emt 0:07:02]} 20. Qxf7+ {[%emt 0:00:07]} Kd8 {[%emt 0:00:18]} 21. Bb6+ {[%emt 0:00:06]} Kd7 {[%emt 0:00:03]} 22. Qxe7+ {[%emt 0:00:55]} 1-0

[Event "Asian Zonal-ch 3.5 Women 2019"]
[Site "Zi Bo"]
[Date "2019.09.05"]
[Round "1.3"]
[White "Hu, Yu A."]
[Black "Huang, Qian"]
[Result "0-1"]
[ECO "B01"]
[WhiteElo "2105"]
[BlackElo "2429"]
[Annotator "ChessBase"]
[PlyCount "194"]
[EventDate "2019.09.05"]
[EventType "swiss"]
[EventCountry "CHN"]
[SourceTitle "playchess.com"]
[Source "ChessBase"]
[SourceQuality "1"]
[TimeControl "5400+30"]

1. e4 {[%emt 0:00:00]} d5 {[%emt 0:01:02]} 2. exd5 {[%emt 0:00:49]} Qxd5 {[%emt 0:00:07]} 3. Nc3 {[%emt 0:00:49]} Qd8 {[%emt 0:00:03]} 4. d4 {[%emt 0:02:16]} Nf6 {[%emt 0:01:02]} 5. Nf3 {[%emt 0:03:57]} g6 {[%emt 0:00:57]} 6. Bc4 {[%emt 0:00:23]} Bg7 {[%emt 0:00:06]} 7. Ne5 {[%emt 0:01:46]} O-O {[%emt 0:00:26]} 8. O-O {[%emt 0:00:17]} Nc6 {[%emt 0:06:49]} 9. Nxc6 {[%emt 0:18:16]} bxc6 {[%emt 0:01:49]} 10. h3 {[%emt 0:01:57]} Nd5 {[%emt 0:01:50]} 11. Nxd5 {[%emt 0:03:22]} cxd5 {[%emt 0:01:00]} 12. Bb3 {[%emt 0:01:06]} a5 {[%emt 0:05:38]} 13. c3 {[%emt 0:07:40]} Qd6 {[%emt 0:05:34]} 14. Qf3 {[%emt 0:02:45]} e6 {[%emt 0:02:02]} 15. Bf4 {[%emt 0:00:33]} Qb6 {[%emt 0:01:52]} 16. Rfc1 {[%emt 0:09:58]} a4 {[%emt 0:10:17]} 17. Bd1 {[%emt 0:02:07]} c5 {[%emt 0:02:21]} 18. dxc5 {[%emt 0:02:19]} Qxc5 {[%emt 0:00:41]} 19. Rab1 {[%emt 0:00:23]} e5 {[%emt 0:14:54]} 20. Be3 {[%emt 0:00:09]} Qa5 {[%emt 0:01:11]} 21. b4 {[%emt 0:01:22]} axb3 {[%emt 0:00:30]} 22. Bxb3 {[%emt 0:00:06]} Be6 {[%emt 0:01:36]} 23. Rd1 {[%emt 0:07:08]} e4 {[%emt 0:09:21]} 24. Qf4 {[%emt 0:01:49]} Bxc3 {[%emt 0:06:22]} 25. Bd4 {[%emt 0:00:05]} Rfc8 {[%emt 0:11:26]} 26. Qe5 {[%emt 0:01:20]} Bxd4 {[%emt 0:00:04]} 27. Rxd4 {[%emt 0:00:06]} Qc7 {[%emt 0:06:00]} 28. Qg5 {[%emt 0:08:01]} Qd8 {[%emt 0:07:57]} 29. Qe5 {[%emt 0:00:16]} Qc7 {[%emt 0:00:35]} 30. Qg5 {[%emt 0:00:08]} Rd8 {[%emt 0:00:46]} 31. Rbd1 {[%emt 0:00:14]} Rd7 {[%emt 0:00:17]} 32. Ba4 {[%emt 0:06:29]} Rd6 {[%emt 0:00:09]} 33. Qe5 {[%emt 0:00:23]} Rad8 {[%emt 0:00:21]} 34. Bb3 {[%emt 0:00:15]} Qc6 {[%emt 0:01:22]} 35. Ba4 {[%emt 0:00:55]} Qb6 {[%emt 0:00:29]} 36. Bb3 {[%emt 0:00:10]} R6d7 {[%emt 0:00:31]} 37. Ba4 {[%emt 0:03:02]} Rd6 {[%emt 0:00:21]} 38. Bb3 {[%emt 0:00:06]} Qc7 {[%emt 0:00:18]} 39. Kf1 {[%emt 0:03:41]} Qd7 {[%emt 0:00:20]} 40. Kg1 {[%emt 0:00:26]} Qc7 {[%emt 0:00:12]} 41. Kf1 {[%emt 0:00:08]} Qc6 {[%emt 0:01:18]} 42. Kg1 {[%emt 0:00:14]} Qb6 {[%emt 0:00:23]} 43. Kh1 {[%emt 0:03:20]} R6d7 {[%emt 0:00:26]} 44. Ba4 {[%emt 0:00:23]} Rd6 {[%emt 0:00:33]} 45. Bb3 {[%emt 0:00:06]} Qc7 {[%emt 0:00:37]} 46. Kg1 {[%emt 0:00:10]} Qd7 {[%emt 0:00:33]} 47. Kh1 {[%emt 0:01:13]} Qe7 {[%emt 0:00:26]} 48. Rxd5 {[%emt 0:00:40]} Rxd5 {[%emt 0:00:31]} 49. Rxd5 {[%emt 0:00:11]} Re8 {[%emt 0:00:29]} 50. Rb5 {[%emt 0:00:43]} Bxb3 {[%emt 0:00:25]} 51. Qxe7 {[%emt 0:00:06]} Rxe7 {[%emt 0:00:01]} 52. Rxb3 {[%emt 0:00:38]} f5 {[%emt 0:00:54]} 53. g3 {[%emt 0:00:11]} Kf7 {[%emt 0:00:17]} 54. h4 {[%emt 0:00:06]} Ke6 {[%emt 0:00:44]} 55. Kg2 {[%emt 0:00:13]} Kd5 {[%emt 0:00:20]} 56. Kf1 {[%emt 0:00:16]} Kc4 {[%emt 0:00:10]} 57. Ke2 {[%emt 0:01:04]} Ra7 {[%emt 0:00:11]} 58. Rb2 {[%emt 0:00:06]} Kd4 {[%emt 0:00:52]} 59. Rd2+ {[%emt 0:00:28]} Ke5 {[%emt 0:00:11]} 60. Rb2 {[%emt 0:00:29]} Ra5 {[%emt 0:00:58]} 61. Ke3 {[%emt 0:02:03]} h6 {[%emt 0:00:42]} 62. f3 {[%emt 0:02:51]} exf3 {[%emt 0:00:25]} 63. Kxf3 {[%emt 0:00:05]} g5 {[%emt 0:00:04]} 64. hxg5 {[%emt 0:00:14]} hxg5 {[%emt 0:00:01]} 65. Re2+ {[%emt 0:01:02]} Kf6 {[%emt 0:00:25]} 66. Rb2 {[%emt 0:00:17]} Ra3+ {[%emt 0:00:29]} 67. Kf2 {[%emt 0:00:16]} Kg6 {[%emt 0:00:15]} 68. Kg2 {[%emt 0:01:57]} Kh5 {[%emt 0:00:07]} 69. Rc2 {[%emt 0:02:18]} Rd3 {[%emt 0:02:26]} 70. Rb2 {[%emt 0:02:18]} Rc3 {[%emt 0:00:24]} 71. Rd2 {[%emt 0:00:29]} Ra3 {[%emt 0:00:36]} 72. Rb2 {[%emt 0:00:06]} Kg6 {[%emt 0:00:33]} 73. g4 {[%emt 0:01:18]} f4 {[%emt 0:00:10]} 74. Rb6+ {[%emt 0:00:05]} Kf7 {[%emt 0:00:05]} 75. Rb7+ {[%emt 0:01:36]} Ke6 {[%emt 0:00:05]} 76. Rb6+ {[%emt 0:00:12]} Kd7 {[%emt 0:00:23]} 77. Kf2 {[%emt 0:00:52]} Rg3 {[%emt 0:01:43]} 78. Rb5 {[%emt 0:01:40]} Rxg4 {[%emt 0:00:05]} 79. Kf3 {[%emt 0:00:03]} Rg3+ {[%emt 0:00:34]} 80. Ke4 {[%emt 0:01:03]} f3 {[%emt 0:00:38]} 81. Rf5 {[%emt 0:00:37]} g4 {[%emt 0:00:04]} 82. a4 {[%emt 0:00:46]} Rg2 {[%emt 0:00:17]} 83. Ke3 {[%emt 0:00:44]} Ke6 {[%emt 0:01:13]} 84. Rf8 {[%emt 0:00:19]} Ke7 {[%emt 0:00:38]} 85. Rf4 {[%emt 0:00:06]} Re2+ {[%emt 0:00:27]} 86. Kd3 {[%emt 0:00:12]} Rg2 {[%emt 0:00:39]} 87. Ke3 {[%emt 0:00:05]} Re2+ {[%emt 0:00:20]} 88. Kd3 {[%emt 0:00:03]} Re1 {[%emt 0:00:22]} 89. Kd2 {[%emt 0:00:08]} Ra1 {[%emt 0:00:34]} 90. Ke3 {[%emt 0:00:05]} Re1+ {[%emt 0:00:14]} 91. Kd2 {[%emt 0:00:08]} Rg1 {[%emt 0:00:10]} 92. Ke3 {[%emt 0:00:10]} Kd6 {[%emt 0:01:12]} 93. a5 {[%emt 0:01:42]} Ke5 {[%emt 0:00:35]} 94. Ra4 {[%emt 0:01:14]} Re1+ {[%emt 0:00:23]} 95. Kf2 {[%emt 0:00:25]} Re2+ {[%emt 0:00:04]} 96. Kf1 {[%emt 0:00:32]} g3 {[%emt 0:00:04]} 97. Rg4 {[%emt 0:00:32]} g2+ {[%emt 0:00:14]} 0-1

[Event "Asian Zonal-ch 3.5 Women 2019"]
[Site "Zi Bo"]
[Date "2019.09.05"]
[Round "1.4"]
[White "Zhai, Mo"]
[Black "Bai, Xue"]
[Result "1-0"]
[ECO "E06"]
[WhiteElo "2360"]
[BlackElo "2093"]
[Annotator "ChessBase"]
[PlyCount "67"]
[EventDate "2019.09.05"]
[EventType "swiss"]
[EventCountry "CHN"]
[SourceTitle "playchess.com"]
[Source "ChessBase"]
[SourceQuality "1"]
[TimeControl "5400+30"]

1. c4 {[%emt 0:00:00]} e6 {[%emt 0:00:00]} 2. Nf3 {[%emt 0:00:00]} Nf6 {[%emt 0:00:00]} 3. g3 {[%emt 0:00:09]} d5 {[%emt 0:00:01]} 4. Bg2 {[%emt 0:00:08]} Be7 {[%emt 0:00:17]} 5. d4 {[%emt 0:01:46]} O-O {[%emt 0:00:12]} 6. O-O {[%emt 0:01:07]} c6 {[%emt 0:02:40]} 7. Qc2 {[%emt 0:00:53]} b6 {[%emt 0:01:09]} 8. Nbd2 {[%emt 0:00:29]} Bb7 {[%emt 0:00:59]} 9. e4 {[%emt 0:00:20]} dxc4 {[%emt 0:05:15]} 10. Nxc4 {[%emt 0:01:28]} Nbd7 {[%emt 0:06:46]} 11. Rd1 {[%emt 0:19:23]} b5 {[%emt 0:07:29]} 12. Nce5 {[%emt 0:01:36]} Rc8 {[%emt 0:08:43]} 13. a4 {[%emt 0:08:22]} a5 {[%emt 0:05:51]} 14. Qe2 {[%emt 0:09:55]} b4 {[%emt 0:14:18]} 15. Bf4 {[%emt 0:00:50]} Qb6 {[%emt 0:06:03]} 16. Nc4 {[%emt 0:09:49]} Qa6 {[%emt 0:00:41]} 17. Bf1 {[%emt 0:00:59]} c5 {[%emt 0:01:51]} 18. Nd6 {[%emt 0:16:50]} Qxe2 {[%emt 0:01:27]} 19. Bxe2 {[%emt 0:00:01]} Bxd6 {[%emt 0:00:54]} 20. Bxd6 {[%emt 0:00:02]} Rfd8 {[%emt 0:00:19]} 21. dxc5 {[%emt 0:02:00]} Bxe4 {[%emt 0:01:36]} 22. Nd2 {[%emt 0:01:48]} Bc2 {[%emt 0:06:04]} 23. Rdc1 {[%emt 0:07:49]} b3 {[%emt 0:00:10]} 24. Ba6 {[%emt 0:00:34]} Ra8 {[%emt 0:03:21]} 25. Bb7 {[%emt 0:01:15]} Nxc5 {[%emt 0:05:56]} 26. Bxa8 {[%emt 0:02:30]} Nd3 {[%emt 0:00:08]} 27. Bf3 {[%emt 0:09:25]} Ne8 {[%emt 0:08:51]} 28. Bf4 {[%emt 0:01:38]} Nxf4 {[%emt 0:06:23]} 29. Nxb3 {[%emt 0:00:02]} Nh3+ {[%emt 0:00:33]} 30. Kg2 {[%emt 0:00:07]} Bxb3 {[%emt 0:00:06]} 31. Kxh3 {[%emt 0:00:25]} e5 {[%emt 0:00:51]} 32. Rc5 {[%emt 0:00:53]} e4 {[%emt 0:03:11]} 33. Bxe4 {[%emt 0:00:33]} Rd4 {[%emt 0:00:08]} 34. Bc6 {[%emt 0:00:38]} 1-0

[Event "Asian Zonal-ch 3.5 Women 2019"]
[Site "Zi Bo"]
[Date "2019.09.05"]
[Round "1.5"]
[White "Yuan, Ye"]
[Black "Ning, Kaiyu"]
[Result "1/2-1/2"]
[ECO "D41"]
[WhiteElo "2092"]
[BlackElo "2354"]
[Annotator "ChessBase"]
[PlyCount "63"]
[EventDate "2019.09.05"]
[EventType "swiss"]
[EventCountry "CHN"]
[SourceTitle "playchess.com"]
[Source "ChessBase"]
[SourceQuality "1"]
[TimeControl "5400+30"]

1. d4 {[%emt 0:00:00]} d5 {[%emt 0:00:00]} 2. c4 {[%emt 0:00:00]} e6 {[%emt 0:00:00]} 3. Nc3 {[%emt 0:00:00]} Nf6 {[%emt 0:00:00]} 4. Nf3 {[%emt 0:00:00]} c5 {[%emt 0:00:00]} 5. cxd5 {[%emt 0:01:46]} Nxd5 {[%emt 0:00:00]} 6. e4 {[%emt 0:00:09]} Nxc3 {[%emt 0:00:02]} 7. bxc3 {[%emt 0:00:03]} cxd4 {[%emt 0:00:05]} 8. cxd4 {[%emt 0:00:05]} Bb4+ {[%emt 0:00:04]} 9. Bd2 {[%emt 0:00:03]} Bxd2+ {[%emt 0:00:06]} 10. Qxd2 {[%emt 0:00:03]} O-O {[%emt 0:00:07]} 11. Bc4 {[%emt 0:01:50]} Nd7 {[%emt 0:00:02]} 12. O-O {[%emt 0:00:39]} b6 {[%emt 0:00:02]} 13. a4 {[%emt 0:10:14]} Bb7 {[%emt 0:00:10]} 14. Bd3 {[%emt 0:01:39]} e5 {[%emt 0:00:46]} 15. Nxe5 {[%emt 0:05:52]} Nxe5 {[%emt 0:00:08]} 16. dxe5 {[%emt 0:00:03]} Bxe4 {[%emt 0:00:12]} 17. Rfd1 {[%emt 0:00:16]} Bxd3 {[%emt 0:25:09]} 18. Qxd3 {[%emt 0:00:08]} Qg5 {[%emt 0:12:51]} 19. Qe4 {[%emt 0:04:24]} Rfd8 {[%emt 0:01:55]} 20. e6 {[%emt 0:04:05]} Qe7 {[%emt 0:01:23]} 21. exf7+ {[%emt 0:00:26]} Qxf7 {[%emt 0:00:10]} 22. Rxd8+ {[%emt 0:07:25]} Rxd8 {[%emt 0:00:06]} 23. Re1 {[%emt 0:01:30]} h6 {[%emt 0:07:08]} 24. h4 {[%emt 0:09:48]} Rf8 {[%emt 0:09:14]} 25. Re2 {[%emt 0:02:04]} Rc8 {[%emt 0:00:26]} 26. g3 {[%emt 0:09:28]} Kh8 {[%emt 0:09:29]} 27. Re1 {[%emt 0:06:39]} Rf8 {[%emt 0:10:43]} 28. Re2 {[%emt 0:01:05]} Qb3 {[%emt 0:05:38]} 29. Kg2 {[%emt 0:07:18]} Qc3 {[%emt 0:02:10]} 30. Re3 {[%emt 0:01:32]} Qc8 {[%emt 0:03:40]} 31. Re2 {[%emt 0:13:13]} Qc5 {[%emt 0:00:13]} 32. Rc2 {[%emt 0:01:18]} 1/2-1/2

[Event "Asian Zonal-ch 3.5 Women 2019"]
[Site "Zi Bo"]
[Date "2019.09.05"]
[Round "1.6"]
[White "Li, Xueyi"]
[Black "Zhang, Xiao"]
[Result "1-0"]
[ECO "D11"]
[WhiteElo "2323"]
[BlackElo "2073"]
[Annotator "ChessBase"]
[PlyCount "95"]
[EventDate "2019.09.05"]
[EventType "swiss"]
[EventCountry "CHN"]
[SourceTitle "playchess.com"]
[Source "ChessBase"]
[SourceQuality "1"]
[TimeControl "5400+30"]

1. Nf3 {[%emt 0:00:00]} d5 {[%emt 0:00:00]} 2. g3 {[%emt 0:02:08]} Nf6 {[%emt 0:00:00]} 3. Bg2 {[%emt 0:00:10]} c6 {[%emt 0:00:00]} 4. d4 {[%emt 0:00:38]} Bf5 {[%emt 0:00:13]} 5. c4 {[%emt 0:01:58]} e6 {[%emt 0:01:52]} 6. Nc3 {[%emt 0:00:06]} h6 {[%emt 0:03:34]} 7. Qb3 {[%emt 0:00:30]} Qc8 {[%emt 0:09:07]} 8. Bf4 {[%emt 0:00:29]} Nbd7 {[%emt 0:01:20]} 9. Rc1 {[%emt 0:01:15]} dxc4 {[%emt 0:14:06]} 10. Qxc4 {[%emt 0:01:21]} Nb6 {[%emt 0:01:24]} 11. Qb3 {[%emt 0:00:40]} Nbd5 {[%emt 0:01:31]} 12. Be5 {[%emt 0:08:13]} Be7 {[%emt 0:10:47]} 13. Nd2 {[%emt 0:01:57]} Nxc3 {[%emt 0:03:18]} 14. bxc3 {[%emt 0:01:05]} O-O {[%emt 0:01:50]} 15. e4 {[%emt 0:05:33]} Bh7 {[%emt 0:00:22]} 16. h3 {[%emt 0:05:42]} Qd7 {[%emt 0:05:45]} 17. O-O {[%emt 0:01:44]} Rfd8 {[%emt 0:03:59]} 18. c4 {[%emt 0:11:18]} Rac8 {[%emt 0:07:49]} 19. c5 {[%emt 0:06:10]} Ne8 {[%emt 0:02:19]} 20. Rcd1 {[%emt 0:01:33]} Bf6 {[%emt 0:18:33]} 21. Nc4 {[%emt 0:00:57]} Bxe5 {[%emt 0:01:44]} 22. Nxe5 {[%emt 0:00:12]} Qe7 {[%emt 0:00:40]} 23. Nc4 {[%emt 0:05:31]} Rd7 {[%emt 0:03:22]} 24. Qa4 {[%emt 0:01:09]} Qd8 {[%emt 0:06:19]} 25. Ne5 {[%emt 0:00:44]} Re7 {[%emt 0:00:20]} 26. Ng4 {[%emt 0:03:42]} b5 {[%emt 0:01:02]} 27. Qa6 {[%emt 0:03:09]} Qc7 {[%emt 0:01:21]} 28. Ne5 {[%emt 0:04:56]} Nf6 {[%emt 0:00:39]} 29. Rfe1 {[%emt 0:00:36]} Nd7 {[%emt 0:00:11]} 30. Nd3 {[%emt 0:06:46]} Nb8 {[%emt 0:00:03]} 31. Qa3 {[%emt 0:00:04]} a5 {[%emt 0:00:20]} 32. Qb2 {[%emt 0:00:45]} Rd8 {[%emt 0:00:18]} 33. Nf4 {[%emt 0:00:26]} g5 {[%emt 0:01:05]} 34. Nh5 {[%emt 0:00:21]} Nd7 {[%emt 0:00:57]} 35. d5 {[%emt 0:00:45]} Qe5 {[%emt 0:00:09]} 36. Qxe5 {[%emt 0:01:09]} Nxe5 {[%emt 0:00:02]} 37. f4 {[%emt 0:01:27]} Nc4 {[%emt 0:00:33]} 38. dxc6 {[%emt 0:01:17]} Rc8 {[%emt 0:01:04]} 39. Rd7 {[%emt 0:02:31]} Kf8 {[%emt 0:00:13]} 40. Nf6 {[%emt 0:00:35]} Bg6 {[%emt 0:00:13]} 41. e5 {[%emt 0:00:52]} Bc2 {[%emt 0:01:03]} 42. Rb7 {[%emt 0:01:49]} Ba4 {[%emt 0:00:37]} 43. Nd7+ {[%emt 0:01:12]} Ke8 {[%emt 0:00:17]} 44. Nb6 {[%emt 0:00:55]} Nxb6 {[%emt 0:01:00]} 45. Rxe7+ {[%emt 0:00:11]} Kxe7 {[%emt 0:00:02]} 46. cxb6 {[%emt 0:00:07]} Kd8 {[%emt 0:00:29]} 47. c7+ {[%emt 0:00:11]} Kd7 {[%emt 0:00:28]} 48. b7 {[%emt 0:00:40]} 1-0

[Event "Asian Zonal-ch 3.5 Women 2019"]
[Site "Zi Bo"]
[Date "2019.09.05"]
[Round "1.7"]
[White "Zhang, Yuxuan"]
[Black "Song, Yuxin"]
[Result "0-1"]
[ECO "B92"]
[WhiteElo "1979"]
[BlackElo "2305"]
[Annotator "ChessBase"]
[PlyCount "94"]
[EventDate "2019.09.05"]
[EventType "swiss"]
[EventCountry "CHN"]
[SourceTitle "playchess.com"]
[Source "ChessBase"]
[SourceQuality "1"]
[TimeControl "5400+30"]

1. e4 {[%emt 0:00:00]} c5 {[%emt 0:00:00]} 2. Nf3 {[%emt 0:00:00]} d6 {[%emt 0:00:00]} 3. d4 {[%emt 0:00:00]} cxd4 {[%emt 0:00:02]} 4. Nxd4 {[%emt 0:00:00]} Nf6 {[%emt 0:00:13]} 5. Nc3 {[%emt 0:00:09]} a6 {[%emt 0:00:10]} 6. Be2 {[%emt 0:00:15]} e5 {[%emt 0:00:10]} 7. Nf3 {[%emt 0:00:28]} h6 {[%emt 0:00:23]} 8. Nd2 {[%emt 0:00:28]} Be7 9. Nc4 {[%emt 0:01:05]} b5 {[%emt 0:00:10]} 10. Ne3 {[%emt 0:00:05]} O-O {[%emt 0:06:05]} 11. Ncd5 {[%emt 0:00:21]} Nxd5 {[%emt 0:00:00]} 12. Nxd5 {[%emt 0:05:16]} Nd7 {[%emt 0:02:33]} 13. Be3 {[%emt 0:11:56]} Nf6 {[%emt 0:08:55]} 14. Nxf6+ {[%emt 0:00:00]} Bxf6 {[%emt 0:00:00]} 15. c4 {[%emt 0:03:36]} Bb7 {[%emt 0:05:46]} 16. cxb5 {[%emt 0:03:31]} axb5 {[%emt 0:00:00]} 17. Bf3 {[%emt 0:07:32]} Qa5+ {[%emt 0:03:19]} 18. Bd2 {[%emt 0:00:00]} Qa4 {[%emt 0:07:03]} 19. Qxa4 {[%emt 0:01:31]} Rxa4 {[%emt 0:00:15]} 20. b3 {[%emt 0:06:13]} Ra7 {[%emt 0:03:04]} 21. Bb4 {[%emt 0:10:51]} Be7 {[%emt 0:05:26]} 22. O-O {[%emt 0:08:13]} f5 {[%emt 0:12:16]} 23. Rfd1 {[%emt 0:02:17]} fxe4 {[%emt 0:06:51]} 24. Be2 {[%emt 0:00:43]} e3 {[%emt 0:00:39]} 25. fxe3 {[%emt 0:00:00]} Bg5 {[%emt 0:08:26]} 26. Bxd6 {[%emt 0:00:26]} Bxe3+ {[%emt 0:00:00]} 27. Kh1 {[%emt 0:01:20]} Rf2 {[%emt 0:00:00]} 28. Bf1 {[%emt 0:00:13]} Bd4 {[%emt 0:10:37]} 29. a4 {[%emt 0:03:14]} Ra6 {[%emt 0:10:45]} 30. Rxd4 {[%emt 0:08:38]} exd4 {[%emt 0:00:32]} 31. Bg3 {[%emt 0:02:30]} Rd2 {[%emt 0:01:58]} 32. Bxb5 {[%emt 0:00:40]} Rxg2 {[%emt 0:00:43]} 33. Bxa6 {[%emt 0:00:05]} Ba8 {[%emt 0:01:04]} 34. Bc4+ {[%emt 0:00:20]} Kh8 {[%emt 0:00:47]} 35. h4 {[%emt 0:02:18]} Ra2+ {[%emt 0:00:00]} 36. Kg1 {[%emt 0:00:12]} Rxa1+ {[%emt 0:00:05]} 37. Kf2 {[%emt 0:01:13]} Be4 {[%emt 0:01:14]} 38. Be5 {[%emt 0:00:00]} Ra2+ {[%emt 0:00:00]} 39. Ke1 {[%emt 0:00:12]} d3 {[%emt 0:00:00]} 40. Bf4 {[%emt 0:00:16]} g5 {[%emt 0:00:00]} 41. hxg5 {[%emt 0:01:18]} h5 {[%emt 0:00:00]} 42. Bf7 {[%emt 0:00:56]} Re2+ {[%emt 0:00:00]} 43. Kd1 {[%emt 0:01:12]} Bf3 {[%emt 0:00:00]} 44. Kc1 {[%emt 0:06:53]} Kg7 {[%emt 0:00:00]} 45. g6 {[%emt 0:01:33]} h4 {[%emt 0:00:00]} 46. Bd2 {[%emt 0:00:39]} Rxd2 {[%emt 0:00:00]} 47. Kxd2 {[%emt 0:00:04]} h3 {[%emt 0:00:25]} 0-1